[Event "Late-Titled-Tuesday-Blitz-March-19-2024"]
[Site "Chess.com"]
[Date "2024.03.19"]
[Round "2"]
[White "marcodobrikov"]
[Black "AndreyNeves"]
[Result "1-0"]
[WhiteElo "2702"]
[BlackElo "2119"]
[TimeControl "180+1"]
[EndTime "14:18:27 PDT"]
[Termination "marcodobrikov won on time"]

1. e4 {[%clk 0:02:57.6]} 1... c6 {[%clk 0:03:00.1]} 2. d4 {[%clk 0:02:56.1]}
2... d5 {[%clk 0:02:59.7]} 3. exd5 {[%clk 0:02:55.8]} 3... cxd5 {[%clk
0:02:59.5]} 4. Bd3 {[%clk 0:02:56.2]} 4... Nc6 {[%clk 0:02:58.8]} 5. c3 {[%clk
0:02:56.8]} 5... Nf6 {[%clk 0:02:58.8]} 6. Bf4 {[%clk 0:02:57.3]} 6... Bg4
{[%clk 0:02:57.7]} 7. f3 {[%clk 0:02:56.5]} 7... Bh5 {[%clk 0:02:56.2]} 8. Ne2
{[%clk 0:02:56.9]} 8... e6 {[%clk 0:02:52.3]} 9. Nd2 {[%clk 0:02:56.6]} 9... Bd6
{[%clk 0:02:48.3]} 10. Qb3 {[%clk 0:02:56.6]} 10... O-O {[%clk 0:02:36.7]} 11.
Qxb7 {[%clk 0:02:52.6]} 11... Rc8 {[%clk 0:02:30.9]} 12. Bxd6 {[%clk 0:02:50.8]}
12... Qxd6 {[%clk 0:02:30.3]} 13. Qb3 {[%clk 0:02:50]} 13... e5 {[%clk
0:02:28.2]} 14. O-O {[%clk 0:02:41.9]} 14... e4 {[%clk 0:02:20]} 15. Bb1 {[%clk
0:02:22.1]} 15... e3 {[%clk 0:02:19.9]} 16. Qc2 {[%clk 0:02:15.7]} 16... exd2
{[%clk 0:02:18.2]} 17. Qxd2 {[%clk 0:02:16.6]} 17... Bg6 {[%clk 0:02:16.8]} 18.
Bxg6 {[%clk 0:02:15.8]} 18... hxg6 {[%clk 0:02:16.4]} 19. Nf4 {[%clk 0:02:16.7]}
19... Rfe8 {[%clk 0:02:12.5]} 20. Nd3 {[%clk 0:02:16.8]} 20... Re7 {[%clk
0:02:07.3]} 21. b4 {[%clk 0:02:14.2]} 21... Rce8 {[%clk 0:02:05.7]} 22. Rfe1
{[%clk 0:02:14.3]} 22... Rxe1+ {[%clk 0:02:04]} 23. Rxe1 {[%clk 0:02:15.2]}
23... Rxe1+ {[%clk 0:02:03]} 24. Qxe1 {[%clk 0:02:16.1]} 24... Qe6 {[%clk
0:01:58]} 25. Qd2 {[%clk 0:02:14.3]} 25... Qf5 {[%clk 0:01:50.8]} 26. a4 {[%clk
0:02:14]} 26... a6 {[%clk 0:01:47.5]} 27. h3 {[%clk 0:02:10.1]} 27... Qd7 {[%clk
0:01:37.4]} 28. Nc5 {[%clk 0:02:09.9]} 28... Qa7 {[%clk 0:01:32]} 29. Qe2 {[%clk
0:02:08.2]} 29... g5 {[%clk 0:01:10.8]} 30. Qxa6 {[%clk 0:02:02]} 30... Qc7
{[%clk 0:01:05.2]} 31. Qe2 {[%clk 0:01:50.5]} 31... Qf4 {[%clk 0:01:01.7]} 32.
Qe1 {[%clk 0:01:48.4]} 32... Nh5 {[%clk 0:00:54.1]} 33. b5 {[%clk 0:01:44.7]}
33... Na5 {[%clk 0:00:46.9]} 34. b6 {[%clk 0:01:36]} 34... Qb8 {[%clk
0:00:36.6]} 35. Qb1 {[%clk 0:01:31.3]} 35... Nf4 {[%clk 0:00:33.1]} 36. Qb5
{[%clk 0:01:24.2]} 36... Nc4 {[%clk 0:00:27.1]} 37. b7 {[%clk 0:01:20.1]} 37...
Ne2+ {[%clk 0:00:20.7]} 38. Kf1 {[%clk 0:01:10.5]} 38... Ng3+ {[%clk 0:00:18.8]}
39. Ke1 {[%clk 0:01:07.4]} 39... Kh7 {[%clk 0:00:08.3]} 40. Qb1+ {[%clk
0:00:57.5]} 40... g6 {[%clk 0:00:07.8]} 41. Kf2 {[%clk 0:00:36.2]} 41... Nf5
{[%clk 0:00:07.5]} 42. Kg1 {[%clk 0:00:32.4]} 42... Qg3 {[%clk 0:00:07]} 43.
b8=Q {[%clk 0:00:28]} 43... Nce3 {[%clk 0:00:06.2]} 44. Qxg3 {[%clk 0:00:27.7]}
44... Nxg3 {[%clk 0:00:06]} 45. a5 {[%clk 0:00:27.6]} 45... Ne2+ {[%clk
0:00:05.8]} 46. Kf2 {[%clk 0:00:27.1]} 46... Nxc3 {[%clk 0:00:04.5]} 47. Qd3
{[%clk 0:00:24.1]} 47... Ned1+ {[%clk 0:00:03]} 48. Ke1 {[%clk 0:00:23.2]} 1-0

[Event "Late-Titled-Tuesday-Blitz-March-19-2024"]
[Site "Chess.com"]
[Date "2024.03.19"]
[Round "2"]
[White "koncheto"]
[Black "MightyMike_009"]
[Result "0-1"]
[WhiteElo "2553"]
[BlackElo "2768"]
[TimeControl "180+1"]
[EndTime "14:18:31 PDT"]
[Termination "MightyMike_009 won on time"]

1. e4 {[%clk 0:03:00.6]} 1... e5 {[%clk 0:02:59.8]} 2. Nf3 {[%clk 0:02:57.1]}
2... Nc6 {[%clk 0:02:59.5]} 3. Bc4 {[%clk 0:02:57.2]} 3... Bc5 {[%clk
0:02:58.5]} 4. c3 {[%clk 0:02:56.3]} 4... Nf6 {[%clk 0:02:55.9]} 5. d3 {[%clk
0:02:56.4]} 5... a6 {[%clk 0:02:55.1]} 6. Bb3 {[%clk 0:02:56.2]} 6... Ba7 {[%clk
0:02:55.5]} 7. O-O {[%clk 0:02:56.2]} 7... d6 {[%clk 0:02:56.2]} 8. Nbd2 {[%clk
0:02:56.2]} 8... h6 {[%clk 0:02:56.6]} 9. Re1 {[%clk 0:02:49.9]} 9... O-O {[%clk
0:02:55.1]} 10. h3 {[%clk 0:02:48.9]} 10... Nh5 {[%clk 0:02:55.4]} 11. Nf1
{[%clk 0:02:38]} 11... Qf6 {[%clk 0:02:54.7]} 12. Ne3 {[%clk 0:02:32]} 12... Nf4
{[%clk 0:02:54.5]} 13. Nd5 {[%clk 0:02:27.7]} 13... Nxd5 {[%clk 0:02:54.6]} 14.
exd5 {[%clk 0:02:22.3]} 14... Ne7 {[%clk 0:02:53]} 15. Be3 {[%clk 0:02:19.7]}
15... Ng6 {[%clk 0:02:39.7]} 16. Bxa7 {[%clk 0:01:40.7]} 16... Rxa7 {[%clk
0:02:40.6]} 17. d4 {[%clk 0:01:23.9]} 17... Bf5 {[%clk 0:02:40]} 18. dxe5 {[%clk
0:01:10.5]} 18... dxe5 {[%clk 0:02:40.9]} 19. Nxe5 {[%clk 0:01:03.9]} 19... Nxe5
{[%clk 0:02:33]} 20. Qd4 {[%clk 0:01:03.5]} 20... Nf3+ {[%clk 0:02:14.6]} 21.
gxf3 {[%clk 0:01:04.4]} 21... Qg5+ {[%clk 0:02:14.8]} 22. Kh2 {[%clk 0:00:50.2]}
22... c5 {[%clk 0:01:32.3]} 23. dxc6 {[%clk 0:00:41.9]} 23... Rd8 {[%clk
0:01:31.8]} 24. Qxa7 {[%clk 0:00:12.1]} 24... Qf4+ {[%clk 0:01:29.5]} 25. Kg2
{[%clk 0:00:05.7]} 25... Rd6 {[%clk 0:01:15.5]} 26. Qe3 {[%clk 0:00:04.5]} 26...
Qh4 {[%clk 0:00:53.6]} 27. Kf1 {[%clk 0:00:04.4]} 27... Bd3+ {[%clk 0:00:51.1]}
28. Qxd3 {[%clk 0:00:03]} 28... Rxd3 {[%clk 0:00:52]} 29. c7 {[%clk 0:00:02.1]}
29... Qxh3+ {[%clk 0:00:52.1]} 30. Ke2 {[%clk 0:00:02.2]} 30... Qxf3+ {[%clk
0:00:51.2]} 31. Kf1 {[%clk 0:00:02.1]} 31... Qh3+ {[%clk 0:00:48.3]} 32. Ke2
{[%clk 0:00:02.3]} 32... Rd6 {[%clk 0:00:43.8]} 33. Rad1 {[%clk 0:00:02.3]}
33... Qg4+ {[%clk 0:00:41.7]} 34. Kf1 {[%clk 0:00:02]} 34... Qh3+ {[%clk
0:00:40.2]} 35. Ke2 {[%clk 0:00:02.1]} 35... Rc6 {[%clk 0:00:37.2]} 36. Rd8+
{[%clk 0:00:01.7]} 36... Kh7 {[%clk 0:00:37.4]} 37. Bc2+ {[%clk 0:00:02]} 37...
g6 {[%clk 0:00:37]} 38. Red1 {[%clk 0:00:02.1]} 38... Rxc7 {[%clk 0:00:36.4]}
39. R1d6 {[%clk 0:00:01.9]} 39... Qg4+ {[%clk 0:00:36.1]} 40. Kd2 {[%clk
0:00:02.1]} 40... Re7 {[%clk 0:00:35.2]} 41. c4 {[%clk 0:00:01.7]} 41... Qxc4
{[%clk 0:00:34.1]} 42. Bd3 {[%clk 0:00:01.6]} 42... Qf4+ {[%clk 0:00:34.2]} 43.
Kc2 {[%clk 0:00:01.7]} 43... Rc7+ {[%clk 0:00:34.5]} 44. Kb3 {[%clk 0:00:01.3]}
44... b5 {[%clk 0:00:32.9]} 45. a3 {[%clk 0:00:01.8]} 45... Qxf2 {[%clk
0:00:31.4]} 46. Rd4 {[%clk 0:00:02.2]} 46... Qf6 {[%clk 0:00:31.2]} 47. R8d6
{[%clk 0:00:02]} 47... Qe7 {[%clk 0:00:30.5]} 48. Rxa6 {[%clk 0:00:02.1]} 48...
Rd7 {[%clk 0:00:25.2]} 49. Rxd7 {[%clk 0:00:01.2]} 49... Qxd7 {[%clk 0:00:26.1]}
0-1

[Event "Late-Titled-Tuesday-Blitz-March-19-2024"]
[Site "Chess.com"]
[Date "2024.03.19"]
[Round "2"]
[White "DeTimmerman"]
[Black "Ticoluis"]
[Result "1/2-1/2"]
[WhiteElo "2754"]
[BlackElo "2520"]
[TimeControl "180+1"]
[EndTime "14:18:31 PDT"]
[Termination "Game drawn by repetition"]

1. b4 {[%clk 0:03:00.9]} 1... Nf6 {[%clk 0:02:58.6]} 2. Bb2 {[%clk 0:03:00.8]}
2... d6 {[%clk 0:02:57.5]} 3. c4 {[%clk 0:03:00]} 3... e5 {[%clk 0:02:57.9]} 4.
a4 {[%clk 0:03:00]} 4... a5 {[%clk 0:02:57]} 5. b5 {[%clk 0:02:59.8]} 5... Nbd7
{[%clk 0:02:56.8]} 6. e3 {[%clk 0:03:00.5]} 6... g6 {[%clk 0:02:55.5]} 7. Nf3
{[%clk 0:03:01.1]} 7... Bg7 {[%clk 0:02:54.7]} 8. Be2 {[%clk 0:03:01.7]} 8...
O-O {[%clk 0:02:54.2]} 9. O-O {[%clk 0:03:02.3]} 9... Re8 {[%clk 0:02:48.2]} 10.
d4 {[%clk 0:03:02.2]} 10... e4 {[%clk 0:02:47.3]} 11. Nfd2 {[%clk 0:03:01.9]}
11... h5 {[%clk 0:02:47.2]} 12. Nc3 {[%clk 0:03:02.3]} 12... Nf8 {[%clk
0:02:46.9]} 13. Re1 {[%clk 0:03:02.1]} 13... Bf5 {[%clk 0:02:47.2]} 14. f3
{[%clk 0:03:02.1]} 14... exf3 {[%clk 0:02:42.1]} 15. Bxf3 {[%clk 0:03:03]} 15...
Qc8 {[%clk 0:02:39.3]} 16. Nf1 {[%clk 0:02:42.9]} 16... N8h7 {[%clk 0:02:36.7]}
17. e4 {[%clk 0:02:26.3]} 17... Bg4 {[%clk 0:02:35]} 18. h3 {[%clk 0:02:21.2]}
18... Bxf3 {[%clk 0:02:30.6]} 19. Qxf3 {[%clk 0:02:22.1]} 19... Ng5 {[%clk
0:02:28.6]} 20. Qd3 {[%clk 0:02:22.2]} 20... c6 {[%clk 0:02:23.1]} 21. Rad1
{[%clk 0:01:55.9]} 21... Ne6 {[%clk 0:02:16.3]} 22. Ne2 {[%clk 0:01:41.6]} 22...
d5 {[%clk 0:02:10.6]} 23. e5 {[%clk 0:01:32.6]} 23... Ne4 {[%clk 0:02:09.4]} 24.
Nfg3 {[%clk 0:01:29.9]} 24... Nxg3 {[%clk 0:02:03.5]} 25. Nxg3 {[%clk
0:01:30.8]} 25... dxc4 {[%clk 0:02:01.7]} 26. Qxc4 {[%clk 0:01:29.2]} 26... cxb5
{[%clk 0:01:59.5]} 27. Qxb5 {[%clk 0:01:26.1]} 27... Nf4 {[%clk 0:01:58]} 28.
Qf1 {[%clk 0:01:23.6]} 28... Nd5 {[%clk 0:01:56]} 29. Ne4 {[%clk 0:01:22.3]}
29... Qe6 {[%clk 0:01:55.4]} 30. Bc1 {[%clk 0:01:14]} 30... f5 {[%clk
0:01:42.8]} 31. exf6 {[%clk 0:01:09.7]} 31... Nxf6 {[%clk 0:01:32.6]} 32. Nxf6+
{[%clk 0:01:02.8]} 32... Qxf6 {[%clk 0:01:32]} 33. Qc4+ {[%clk 0:01:03.3]} 33...
Kh7 {[%clk 0:01:30.6]} 34. Rf1 {[%clk 0:01:00.3]} 34... Qc6 {[%clk 0:01:26.8]}
35. Qxc6 {[%clk 0:00:58.9]} 35... bxc6 {[%clk 0:01:26.5]} 36. Rf7 {[%clk
0:00:59.3]} 36... Kg8 {[%clk 0:01:25.5]} 37. Rc7 {[%clk 0:00:58.5]} 37... Rad8
{[%clk 0:01:25.2]} 38. Rxc6 {[%clk 0:00:55.1]} 38... Bxd4+ {[%clk 0:01:23.5]}
39. Kh1 {[%clk 0:00:54]} 39... Be5 {[%clk 0:01:22.1]} 40. Rf1 {[%clk 0:00:42.5]}
40... Kg7 {[%clk 0:01:19.1]} 41. Bg5 {[%clk 0:00:41.2]} 41... Rd7 {[%clk
0:01:15.9]} 42. Rc5 {[%clk 0:00:39.4]} 42... Bg3 {[%clk 0:01:12.5]} 43. Rxa5
{[%clk 0:00:34.9]} 43... h4 {[%clk 0:01:12.8]} 44. Rb5 {[%clk 0:00:28.5]} 44...
Rf7 {[%clk 0:01:06.7]} 45. Rbb1 {[%clk 0:00:25.2]} 45... Rxf1+ {[%clk 0:01:04]}
46. Rxf1 {[%clk 0:00:26.1]} 46... Ra8 {[%clk 0:01:01.5]} 47. Ra1 {[%clk
0:00:23.2]} 47... Ra5 {[%clk 0:01:01.6]} 48. Bd2 {[%clk 0:00:22.4]} 48... Ra6
{[%clk 0:01:00.2]} 49. Bc3+ {[%clk 0:00:22.4]} 49... Kf7 {[%clk 0:01:00.1]} 50.
a5 {[%clk 0:00:22.8]} 50... Ke6 {[%clk 0:01:00.4]} 51. Rb1 {[%clk 0:00:21.5]}
51... Kd5 {[%clk 0:01:00.2]} 52. Kg1 {[%clk 0:00:21.2]} 52... Kc4 {[%clk
0:00:59.5]} 53. Bd2 {[%clk 0:00:21.4]} 53... Kd3 {[%clk 0:00:59.1]} 54. Bb4
{[%clk 0:00:20.7]} 54... Kc2 {[%clk 0:00:55.9]} 55. Rf1 {[%clk 0:00:19.2]} 55...
Kb3 {[%clk 0:00:53.1]} 56. Bd2 {[%clk 0:00:18.3]} 56... Kc2 {[%clk 0:00:52.9]}
57. Bb4 {[%clk 0:00:18.1]} 57... Kb3 {[%clk 0:00:52.7]} 58. Be1 {[%clk
0:00:14.2]} 58... Bxe1 {[%clk 0:00:50.7]} 59. Rxe1 {[%clk 0:00:15.1]} 59... Rxa5
{[%clk 0:00:49.9]} 60. Re4 {[%clk 0:00:14.8]} 60... g5 {[%clk 0:00:49.3]} 61.
Kh2 {[%clk 0:00:14.5]} 61... Kc3 {[%clk 0:00:49.6]} 62. Kg1 {[%clk 0:00:12.2]}
62... Kd3 {[%clk 0:00:50]} 63. Rb4 {[%clk 0:00:12]} 63... Ke3 {[%clk 0:00:49.7]}
64. Rb3+ {[%clk 0:00:11.7]} 64... Kf4 {[%clk 0:00:48.4]} 65. Rb4+ {[%clk
0:00:11.7]} 65... Ke3 {[%clk 0:00:48.6]} 66. Rb3+ {[%clk 0:00:12.6]} 66... Kf4
{[%clk 0:00:48.5]} 67. Rb4+ {[%clk 0:00:13.2]} 67... Ke3 {[%clk 0:00:48.3]}
1/2-1/2

[Event "Late-Titled-Tuesday-Blitz-March-19-2024"]
[Site "Chess.com"]
[Date "2024.03.19"]
[Round "2"]
[White "Sandstad"]
[Black "Fonsofan"]
[Result "1-0"]
[WhiteElo "2505"]
[BlackElo "2725"]
[TimeControl "180+1"]
[EndTime "14:18:31 PDT"]
[Termination "Sandstad won on time"]

1. d4 {[%clk 0:03:00.9]} 1... d6 {[%clk 0:02:51.8]} 2. c4 {[%clk 0:03:00.8]}
2... e5 {[%clk 0:02:50.7]} 3. d5 {[%clk 0:03:00.4]} 3... Be7 {[%clk 0:02:50.1]}
4. Nc3 {[%clk 0:02:59.7]} 4... a5 {[%clk 0:02:46.9]} 5. g3 {[%clk 0:02:47.6]}
5... Na6 {[%clk 0:02:46.5]} 6. Bg2 {[%clk 0:02:45.1]} 6... f5 {[%clk 0:02:41]}
7. e4 {[%clk 0:02:43]} 7... Nf6 {[%clk 0:02:34.4]} 8. Nge2 {[%clk 0:02:31.5]}
8... fxe4 {[%clk 0:02:22]} 9. Nxe4 {[%clk 0:02:29.8]} 9... Nxe4 {[%clk
0:02:22.4]} 10. Bxe4 {[%clk 0:02:30.6]} 10... Bh3 {[%clk 0:02:19.1]} 11. Nf4
{[%clk 0:02:15.4]} 11... exf4 {[%clk 0:02:08.4]} 12. Qh5+ {[%clk 0:02:14.9]}
12... Kf8 {[%clk 0:02:08.6]} 13. Qxh3 {[%clk 0:02:14.9]} 13... Nc5 {[%clk
0:02:07.7]} 14. Bc2 {[%clk 0:02:12.7]} 14... Bg5 {[%clk 0:02:00.5]} 15. O-O
{[%clk 0:02:10.1]} 15... Qf6 {[%clk 0:01:58]} 16. Rb1 {[%clk 0:02:01.6]} 16...
f3 {[%clk 0:01:36.4]} 17. Qf5 {[%clk 0:01:35]} 17... Qxf5 {[%clk 0:01:31.3]} 18.
Bxf5 {[%clk 0:01:35.9]} 18... Bxc1 {[%clk 0:01:30.7]} 19. Rfxc1 {[%clk
0:01:34.2]} 19... Re8 {[%clk 0:01:27.5]} 20. Rc3 {[%clk 0:01:31.8]} 20... Re2
{[%clk 0:00:57.4]} 21. Rxf3 {[%clk 0:01:28.3]} 21... Ke7 {[%clk 0:00:57.2]} 22.
Re3+ {[%clk 0:01:17.9]} 22... Rxe3 {[%clk 0:00:56.1]} 23. fxe3 {[%clk
0:01:18.8]} 23... g6 {[%clk 0:00:53.8]} 24. Bc2 {[%clk 0:01:18.5]} 24... Rf8
{[%clk 0:00:53.4]} 25. Rf1 {[%clk 0:01:18.5]} 25... Rxf1+ {[%clk 0:00:51.6]} 26.
Kxf1 {[%clk 0:01:19.4]} 26... Kf6 {[%clk 0:00:51.6]} 27. Kf2 {[%clk 0:01:18.2]}
27... Nd7 {[%clk 0:00:51.5]} 28. Bd3 {[%clk 0:01:13.2]} 28... Ke5 {[%clk
0:00:47.9]} 29. Kf3 {[%clk 0:01:11.4]} 29... Nf6 {[%clk 0:00:47.3]} 30. h3
{[%clk 0:01:10.4]} 30... g5 {[%clk 0:00:45.7]} 31. Bc2 {[%clk 0:01:07.4]} 31...
h6 {[%clk 0:00:45.5]} 32. Bd3 {[%clk 0:01:04]} 32... Nd7 {[%clk 0:00:45.6]} 33.
h4 {[%clk 0:00:59.5]} 33... Kf6 {[%clk 0:00:37.9]} 34. Be2 {[%clk 0:00:53.7]}
34... Ne5+ {[%clk 0:00:33.7]} 35. Ke4 {[%clk 0:00:53.3]} 35... gxh4 {[%clk
0:00:32.8]} 36. gxh4 {[%clk 0:00:53.7]} 36... Ng6 {[%clk 0:00:33.7]} 37. h5
{[%clk 0:00:48.5]} 37... Ne5 {[%clk 0:00:22.8]} 38. Kf4 {[%clk 0:00:46.3]} 38...
Nd7 {[%clk 0:00:23]} 39. b3 {[%clk 0:00:34.5]} 39... Nc5 {[%clk 0:00:20.3]} 40.
Bf1 {[%clk 0:00:33.5]} 40... a4 {[%clk 0:00:13.7]} 41. b4 {[%clk 0:00:32.8]}
41... Na6 {[%clk 0:00:14.3]} 42. a3 {[%clk 0:00:32.6]} 42... Nxb4 {[%clk
0:00:14.2]} 43. Ke4 {[%clk 0:00:24]} 43... Na6 {[%clk 0:00:06.8]} 44. Be2 {[%clk
0:00:23]} 44... Nc5+ {[%clk 0:00:06.7]} 45. Kf4 {[%clk 0:00:22.6]} 45... Nd7
{[%clk 0:00:02.8]} 46. Bd1 {[%clk 0:00:17.5]} 46... Ne5 {[%clk 0:00:02.6]} 47.
Be2 {[%clk 0:00:18.1]} 47... c5 {[%clk 0:00:02.2]} 48. dxc6 {[%clk 0:00:19]}
48... bxc6 {[%clk 0:00:02]} 49. Ke4 {[%clk 0:00:19.4]} 49... Ke6 {[%clk
0:00:01.2]} 50. Kd4 {[%clk 0:00:16.4]} 1-0

[Event "Late-Titled-Tuesday-Blitz-March-19-2024"]
[Site "Chess.com"]
[Date "2024.03.19"]
[Round "2"]
[White "moro182"]
[Black "BabageldiAnnaberdiyev"]
[Result "1-0"]
[WhiteElo "2912"]
[BlackElo "2624"]
[TimeControl "180+1"]
[EndTime "14:18:32 PDT"]
[Termination "moro182 won on time"]

1. d4 {[%clk 0:03:00.9]} 1... e6 {[%clk 0:03:00.9]} 2. Bf4 {[%clk 0:03:00.3]}
2... d5 {[%clk 0:02:59.1]} 3. e3 {[%clk 0:03:00.6]} 3... Bd6 {[%clk 0:02:58.8]}
4. Nf3 {[%clk 0:03:00.9]} 4... f5 {[%clk 0:02:57.9]} 5. c4 {[%clk 0:02:52.9]}
5... c6 {[%clk 0:02:56.8]} 6. Nbd2 {[%clk 0:02:46.5]} 6... Nf6 {[%clk
0:02:56.6]} 7. Bxd6 {[%clk 0:02:41.6]} 7... Qxd6 {[%clk 0:02:57.5]} 8. c5 {[%clk
0:02:42.2]} 8... Qe7 {[%clk 0:02:56.3]} 9. Ne5 {[%clk 0:02:42.5]} 9... Nbd7
{[%clk 0:02:56.4]} 10. f4 {[%clk 0:02:40]} 10... O-O {[%clk 0:02:54.2]} 11. Be2
{[%clk 0:02:32.4]} 11... Nxe5 {[%clk 0:02:47.6]} 12. fxe5 {[%clk 0:02:32.4]}
12... Ne4 {[%clk 0:02:43.1]} 13. O-O {[%clk 0:02:29.2]} 13... Qg5 {[%clk
0:02:41.9]} 14. Rf4 {[%clk 0:02:19.5]} 14... Bd7 {[%clk 0:02:38.8]} 15. Bd3
{[%clk 0:02:08.1]} 15... Qh6 {[%clk 0:02:34.7]} 16. Bxe4 {[%clk 0:01:59.4]}
16... fxe4 {[%clk 0:02:34.4]} 17. Rxf8+ {[%clk 0:02:00.3]} 17... Rxf8 {[%clk
0:02:33.8]} 18. Qe2 {[%clk 0:02:01.2]} 18... Be8 {[%clk 0:02:23.5]} 19. Rf1
{[%clk 0:01:57.8]} 19... Bh5 {[%clk 0:02:22.7]} 20. Rxf8+ {[%clk 0:01:55.5]}
20... Kxf8 {[%clk 0:02:23.6]} 21. Qf2+ {[%clk 0:01:56.1]} 21... Ke7 {[%clk
0:02:23.8]} 22. Nb3 {[%clk 0:01:54.3]} 22... b6 {[%clk 0:02:18.6]} 23. a4 {[%clk
0:01:09.5]} 23... Bd1 {[%clk 0:02:11.5]} 24. cxb6 {[%clk 0:01:09.6]} 24... axb6
{[%clk 0:02:10.4]} 25. a5 {[%clk 0:01:09.3]} 25... bxa5 {[%clk 0:02:01.8]} 26.
Nxa5 {[%clk 0:01:10.2]} 26... Ba4 {[%clk 0:02:00.3]} 27. Nb7 {[%clk 0:01:02.7]}
27... Qh5 {[%clk 0:01:44.4]} 28. h3 {[%clk 0:01:00.6]} 28... Bb5 {[%clk
0:01:31]} 29. Nd6 {[%clk 0:00:53.8]} 29... Bd3 {[%clk 0:01:23.4]} 30. Kh2 {[%clk
0:00:49.8]} 30... h6 {[%clk 0:01:15.2]} 31. Qe1 {[%clk 0:00:37.9]} 31... Kf8
{[%clk 0:01:03.3]} 32. Qf2+ {[%clk 0:00:23.8]} 32... Kg8 {[%clk 0:01:03.3]} 33.
g4 {[%clk 0:00:23.9]} 33... Qg6 {[%clk 0:01:00.6]} 34. Nc8 {[%clk 0:00:24]}
34... Qe8 {[%clk 0:00:53.6]} 35. Nd6 {[%clk 0:00:22.8]} 35... Qg6 {[%clk
0:00:53.4]} 36. Qf4 {[%clk 0:00:23]} 36... Be2 {[%clk 0:00:51.8]} 37. Kg3 {[%clk
0:00:23.1]} 37... Bf3 {[%clk 0:00:49]} 38. h4 {[%clk 0:00:21.9]} 38... h5 {[%clk
0:00:48.7]} 39. g5 {[%clk 0:00:21]} 39... Bg4 {[%clk 0:00:45.3]} 40. Qf1 {[%clk
0:00:17.6]} 40... Bf5 {[%clk 0:00:21.9]} 41. Qa6 {[%clk 0:00:17.2]} 41... Kh7
{[%clk 0:00:17.7]} 42. Qxc6 {[%clk 0:00:16.9]} 42... Bg4 {[%clk 0:00:11.4]} 43.
b4 {[%clk 0:00:17]} 43... Be2 {[%clk 0:00:10.7]} 44. Qd7 {[%clk 0:00:15.1]}
44... Bd3 {[%clk 0:00:06.3]} 45. b5 {[%clk 0:00:11.5]} 45... Bxb5 {[%clk
0:00:06]} 46. Qxb5 {[%clk 0:00:12.4]} 1-0

[Event "Late-Titled-Tuesday-Blitz-March-19-2024"]
[Site "Chess.com"]
[Date "2024.03.19"]
[Round "2"]
[White "Truequitos"]
[Black "ChempionBg"]
[Result "0-1"]
[WhiteElo "2545"]
[BlackElo "2346"]
[TimeControl "180+1"]
[EndTime "14:18:33 PDT"]
[Termination "ChempionBg won on time"]

1. Nf3 {[%clk 0:03:00.9]} 1... Nf6 {[%clk 0:02:54.7]} 2. d4 {[%clk 0:02:58.9]}
2... g6 {[%clk 0:02:53.3]} 3. Bf4 {[%clk 0:02:58.3]} 3... Bg7 {[%clk 0:02:52.9]}
4. Nc3 {[%clk 0:02:58.9]} 4... O-O {[%clk 0:02:53]} 5. Qd2 {[%clk 0:02:59.5]}
5... d5 {[%clk 0:02:53]} 6. Bh6 {[%clk 0:02:59.7]} 6... c6 {[%clk 0:02:53.1]} 7.
h4 {[%clk 0:02:58.9]} 7... Bf5 {[%clk 0:02:52.8]} 8. Bxg7 {[%clk 0:02:45.1]}
8... Kxg7 {[%clk 0:02:49.8]} 9. Ne5 {[%clk 0:02:46]} 9... Nbd7 {[%clk
0:02:42.2]} 10. f3 {[%clk 0:02:45.7]} 10... h5 {[%clk 0:02:31.8]} 11. O-O-O
{[%clk 0:02:29.5]} 11... Qc7 {[%clk 0:02:21.5]} 12. Nd3 {[%clk 0:02:16.8]} 12...
e5 {[%clk 0:02:15.6]} 13. dxe5 {[%clk 0:02:10.5]} 13... Nxe5 {[%clk 0:02:14.4]}
14. Nxe5 {[%clk 0:02:00]} 14... Qxe5 {[%clk 0:02:13.4]} 15. Qd4 {[%clk
0:01:55.7]} 15... Rfe8 {[%clk 0:02:11.6]} 16. Qxe5 {[%clk 0:01:17.5]} 16... Rxe5
{[%clk 0:02:10.3]} 17. Rd4 {[%clk 0:01:17.7]} 17... Rae8 {[%clk 0:02:05.7]} 18.
Nd1 {[%clk 0:01:17.1]} 18... c5 {[%clk 0:02:00.6]} 19. Rd2 {[%clk 0:01:15.2]}
19... d4 {[%clk 0:01:59.1]} 20. g3 {[%clk 0:01:11.2]} 20... Nd5 {[%clk
0:01:56.7]} 21. Rh2 {[%clk 0:01:08.5]} 21... Nb4 {[%clk 0:01:35.2]} 22. a3
{[%clk 0:01:07.4]} 22... Nc6 {[%clk 0:01:34.3]} 23. Nf2 {[%clk 0:00:56.9]} 23...
c4 {[%clk 0:01:30.5]} 24. Nd1 {[%clk 0:00:51.4]} 24... b5 {[%clk 0:01:27.1]} 25.
Rg2 {[%clk 0:00:45.4]} 25... Bh3 {[%clk 0:01:20.5]} 26. Rf2 {[%clk 0:00:45.8]}
26... Bxf1 {[%clk 0:01:18]} 27. Rxf1 {[%clk 0:00:46.4]} 27... Rxe2 {[%clk
0:01:17.5]} 28. g4 {[%clk 0:00:33.8]} 28... hxg4 {[%clk 0:00:59]} 29. fxg4
{[%clk 0:00:33.8]} 29... Rxd2 {[%clk 0:00:59.3]} 30. Kxd2 {[%clk 0:00:33.7]}
30... Re4 {[%clk 0:00:59.4]} 31. Rg1 {[%clk 0:00:24.3]} 31... Ne5 {[%clk
0:00:57.9]} 32. Nf2 {[%clk 0:00:12.9]} 32... Rf4 {[%clk 0:00:44.6]} 33. Rg2
{[%clk 0:00:12.7]} 33... Nf3+ {[%clk 0:00:42.4]} 34. Ke2 {[%clk 0:00:12.9]}
34... Nxh4 {[%clk 0:00:37.9]} 35. Rg1 {[%clk 0:00:13.4]} 35... Nf3 {[%clk
0:00:31.7]} 36. Rg3 {[%clk 0:00:12.6]} 36... Ne5 {[%clk 0:00:29.3]} 37. g5
{[%clk 0:00:13]} 37... a5 {[%clk 0:00:21.7]} 38. a4 {[%clk 0:00:13.4]} 38... b4
{[%clk 0:00:18.4]} 39. Nd1 {[%clk 0:00:11.5]} 39... Re4+ {[%clk 0:00:14.4]} 40.
Kd2 {[%clk 0:00:10.7]} 40... c3+ {[%clk 0:00:14]} 41. bxc3 {[%clk 0:00:10.5]}
41... dxc3+ {[%clk 0:00:11.9]} 42. Kc1 {[%clk 0:00:04.8]} 42... Nc4 {[%clk
0:00:11.9]} 43. Rg1 {[%clk 0:00:02.3]} 43... Re2 {[%clk 0:00:10.8]} 44. Kb1
{[%clk 0:00:01.4]} 44... Rd2 {[%clk 0:00:09.6]} 0-1